[Event "Czech Youth U16 Boys 2024"]
[Site "Kouty nad Desnou"]
[Date "2024.03.15"]
[Round "8.12"]
[White "Dvorak, Jan"]
[Black "Pressler, Tobias"]
[Result "0-1"]
[ECO "B01"]
[WhiteElo "2154"]
[BlackElo "1954"]
[Annotator "RC"]
[PlyCount "100"]
[EventDate "2024.03.10"]
[EventType "swiss"]
[EventCountry "CZE"]
[SourceTitle "playchess.com"]
[Source "ChessBase"]
[SourceQuality "1"]
[TimeControl "40/5400+30:1800+30"]

1. e4 {[%emt 0:00:02]} d5 {[%emt 0:00:53]} 2. exd5 {[%emt 0:00:07]} Qxd5 {[%emt 0:00:05]} 3. Nc3 {[%emt 0:00:10]} Qd6 {[%emt 0:00:07]} 4. d4 {[%emt 0:02:06]} Nf6 {[%emt 0:00:08]} 5. g3 {[%emt 0:04:54]} Bg4 {[%emt 0:00:23]} 6. Nf3 {[%emt 0:06:43]} c6 {[%emt 0:00:11]} 7. Bg2 {[%emt 0:01:06]} g6 {[%emt 0:01:11]} 8. O-O {[%emt 0:01:30]} Bg7 {[%emt 0:00:06]} 9. Re1 {[%emt 0:02:35]} O-O {[%emt 0:00:55]} 10. Bf4 {[%emt 0:03:16]} Qb4 {[%emt 0:00:30]} 11. Qd2 {[%emt 0:10:08]} Bxf3 {[%emt 0:01:44]} 12. Bxf3 {[%emt 0:00:05]} e6 {[%emt 0:00:17]} 13. a3 {[%emt 0:03:22]} Qa5 {[%emt 0:01:31]} 14. b4 {[%emt 0:04:32]} Qd8 {[%emt 0:01:44]} 15. b5 {[%emt 0:02:30]} Nd5 {[%emt 0:00:16]} 16. Bg5 {[%emt 0:11:12]} Qc7 {[%emt 0:01:52]} 17. Nxd5 {[%emt 0:16:03]} cxd5 {[%emt 0:00:15]} 18. Bf4 {[%emt 0:00:54]} Qc4 {[%emt 0:01:29]} 19. c3 {[%emt 0:05:17]} Rc8 {[%emt 0:00:25]} 20. Rab1 {[%emt 0:04:09]} Nd7 {[%emt 0:00:20]} 21. Rec1 {[%emt 0:01:26]} Bf8 {[%emt 0:01:11]} 22. Be2 {[%emt 0:06:34]} Qa4 {[%emt 0:00:07]} 23. Ra1 {[%emt 0:04:07]} Nb6 {[%emt 0:00:18]} 24. Rcb1 {[%emt 0:01:58]} Nc4 {[%emt 0:00:34]} 25. Qe1 {[%emt 0:01:39]} Qa5 {[%emt 0:05:20]} 26. a4 {[%emt 0:02:03]} Na3 {[%emt 0:01:56]} 27. Rc1 {[%emt 0:02:35]} Qxa4 {[%emt 0:00:43]} 28. Qd2 {[%emt 0:01:32]} Qb3 {[%emt 0:00:15]} 29. Ra2 {[%emt 0:00:40]} Nc4 {[%emt 0:02:46]} 30. Bxc4 {[%emt 0:00:46]} Rxc4 {[%emt 0:00:52]} 31. Rb2 {[%emt 0:01:15]} Qa4 {[%emt 0:00:09]} 32. Qe1 {[%emt 0:00:39]} Qa3 {[%emt 0:00:32]} 33. Rcc2 {[%emt 0:00:24]} Qe7 {[%emt 0:00:44]} 34. Ra2 {[%emt 0:00:21]} a5 {[%emt 0:00:14]} 35. Rc1 {[%emt 0:00:35]} b6 {[%emt 0:00:12]} 36. Rcc2 {[%emt 0:00:37]} Qd7 {[%emt 0:00:13]} 37. Rcb2 {[%emt 0:00:32]} a4 {[%emt 0:00:16]} 38. Qb1 {[%emt 0:00:30]} Rxc3 {[%emt 0:01:20]} 39. Bd2 {[%emt 0:00:11]} Rc4 {[%emt 0:00:06]} 40. Be3 {[%emt 0:00:20]} a3 {[%emt 0:00:10]} 41. Rb3 {[%emt 0:02:50]} Rac8 {[%emt 0:00:46]} 42. Qd3 {[%emt 0:09:02]} Qa7 {[%emt 0:00:53]} 43. Qd2 {[%emt 0:03:54]} Qa4 {[%emt 0:00:20]} 44. Qd3 {[%emt 0:01:17]} Bb4 {[%emt 0:00:26]} 45. Bd2 {[%emt 0:01:07]} Bxd2 {[%emt 0:01:09]} 46. Raxa3 {[%emt 0:00:49]} Rc1+ {[%emt 0:00:05]} 47. Kg2 {[%emt 0:00:48]} Qc4 {[%emt 0:00:04]} 48. Qxd2 {[%emt 0:00:35]} Qf1+ {[%emt 0:00:07]} 49. Kf3 {[%emt 0:00:31]} Qh1+ {[%emt 0:01:04]} 50. Kg4 {[%emt 0:01:56]} Qxh2 {[%emt 0:00:07]} 0-1

[Event "Czech Youth U16 Boys 2024"]
[Site "Kouty nad Desnou"]
[Date "2024.03.16"]
[Round "9.1"]
[White "Prazak, Daniel"]
[Black "Ulcak, Michael"]
[Result "1-0"]
[ECO "C49"]
[WhiteElo "2223"]
[BlackElo "1929"]
[Annotator "RC"]
[PlyCount "61"]
[EventDate "2024.03.10"]
[EventType "swiss"]
[EventCountry "CZE"]
[SourceTitle "playchess.com"]
[Source "ChessBase"]
[SourceQuality "1"]
[TimeControl "40/5400+30:1800+30"]

1. e4 {[%emt 0:00:09]} e5 {[%emt 0:00:09]} 2. Nf3 {[%emt 0:00:11]} Nc6 {[%emt 0:00:09]} 3. Nc3 {[%emt 0:00:31]} Nf6 {[%emt 0:00:18]} 4. Bb5 {[%emt 0:01:25]} Bb4 {[%emt 0:00:22]} 5. O-O {[%emt 0:00:12]} d6 {[%emt 0:00:37]} 6. Nd5 {[%emt 0:09:10]} Ba5 {[%emt 0:04:45]} 7. c3 {[%emt 0:02:31]} a6 {[%emt 0:08:05]} 8. Bxc6+ {[%emt 0:01:53]} bxc6 {[%emt 0:00:35]} 9. Qa4 {[%emt 0:00:27]} Nxd5 {[%emt 0:01:28]} 10. Qxc6+ {[%emt 0:00:50]} Bd7 {[%emt 0:00:29]} 11. Qxd5 {[%emt 0:00:19]} Bb6 12. d3 {[%emt 0:02:03]} Be6 {[%emt 0:01:29]} 13. Qb7 {[%emt 0:14:31]} Ra7 {[%emt 0:01:08]} 14. Qc6+ {[%emt 0:00:13]} Bd7 {[%emt 0:00:19]} 15. Qc4 {[%emt 0:01:50]} Bb5 {[%emt 0:00:20]} 16. Qb3 {[%emt 0:00:45]} Bxd3 {[%emt 0:00:21]} 17. Re1 {[%emt 0:01:02]} Bb5 {[%emt 0:02:21]} 18. a4 {[%emt 0:04:29]} Bd7 {[%emt 0:03:39]} 19. a5 {[%emt 0:02:45]} Bc5 {[%emt 0:00:26]} 20. Qd5 {[%emt 0:03:21]} Ra8 {[%emt 0:10:49]} 21. Nxe5 {[%emt 0:05:16]} O-O {[%emt 0:04:51]} 22. Nxd7 {[%emt 0:00:27]} Qxd7 {[%emt 0:00:07]} 23. b4 {[%emt 0:00:41]} Ba7 {[%emt 0:00:32]} 24. Be3 {[%emt 0:00:09]} Bxe3 {[%emt 0:03:37]} 25. Rxe3 {[%emt 0:00:09]} Rab8 {[%emt 0:00:52]} 26. Rd1 {[%emt 0:02:22]} Qb5 {[%emt 0:04:48]} 27. e5 {[%emt 0:02:04]} Rfd8 {[%emt 0:02:25]} 28. Qxb5 {[%emt 0:01:00]} Rxb5 {[%emt 0:00:03]} 29. exd6 {[%emt 0:00:15]} cxd6 {[%emt 0:00:01]} 30. Rxd6 {[%emt 0:00:15]} Rc8 {[%emt 0:00:16]} 31. g3 {[%emt 0:00:25]} 1-0

[Event "Czech Youth U16 Boys 2024"]
[Site "Kouty nad Desnou"]
[Date "2024.03.16"]
[Round "9.2"]
[White "Fizer, Marek"]
[Black "Hladky, Tadeas"]
[Result "1-0"]
[ECO "C02"]
[WhiteElo "2058"]
[BlackElo "2056"]
[Annotator "RC"]
[PlyCount "67"]
[EventDate "2024.03.10"]
[EventType "swiss"]
[EventCountry "CZE"]
[SourceTitle "playchess.com"]
[Source "ChessBase"]
[SourceQuality "1"]
[TimeControl "40/5400+30:1800+30"]

1. e4 {[%emt 0:00:07]} e6 {[%emt 0:00:06]} 2. d4 {[%emt 0:00:10]} d5 {[%emt 0:00:08]} 3. e5 {[%emt 0:00:09]} c5 {[%emt 0:00:16]} 4. c3 {[%emt 0:00:14]} Nc6 {[%emt 0:00:04]} 5. Nf3 {[%emt 0:00:17]} Nh6 {[%emt 0:00:29]} 6. Bd3 {[%emt 0:00:49]} cxd4 {[%emt 0:00:39]} 7. O-O {[%emt 0:01:18]} Nf5 {[%emt 0:14:20]} 8. Bxf5 {[%emt 0:12:24]} exf5 {[%emt 0:00:10]} 9. Nxd4 {[%emt 0:02:39]} Be6 {[%emt 0:00:52]} 10. Re1 {[%emt 0:02:35]} Be7 {[%emt 0:02:34]} 11. f4 {[%emt 0:12:22]} Qb6 {[%emt 0:02:43]} 12. Kh1 {[%emt 0:20:57]} O-O {[%emt 0:07:09]} 13. Nxe6 {[%emt 0:09:37]} fxe6 {[%emt 0:00:57]} 14. Qe2 {[%emt 0:04:46]} Qc7 {[%emt 0:06:35]} 15. Be3 {[%emt 0:01:49]} a6 {[%emt 0:04:43]} 16. Qf2 {[%emt 0:04:55]} b5 {[%emt 0:01:29]} 17. Nd2 {[%emt 0:02:07]} Rfc8 {[%emt 0:15:58]} 18. Nb3 {[%emt 0:07:07]} a5 {[%emt 0:08:27]} 19. Rad1 {[%emt 0:05:16]} g6 {[%emt 0:01:59]} 20. Nc5 {[%emt 0:02:52]} Nd8 {[%emt 0:01:08]} 21. Nb3 {[%emt 0:02:34]} Nb7 {[%emt 0:04:17]} 22. Nd4 {[%emt 0:02:32]} Qd7 {[%emt 0:00:03]} 23. Qe2 {[%emt 0:01:33]} b4 {[%emt 0:00:14]} 24. c4 {[%emt 0:00:32]} Rxc4 {[%emt 0:00:58]} 25. Nxf5 {[%emt 0:00:11]} Rac8 {[%emt 0:01:02]} 26. Nh6+ {[%emt 0:01:56]} Kg7 {[%emt 0:10:11]} 27. Ng4 {[%emt 0:00:30]} Rc2 {[%emt 0:03:16]} 28. Qf3 {[%emt 0:00:24]} Rf8 {[%emt 0:00:58]} 29. Qh3 {[%emt 0:00:47]} Rf5 {[%emt 0:01:41]} 30. Nf6 {[%emt 0:00:58]} Bxf6 {[%emt 0:02:36]} 31. exf6+ {[%emt 0:00:04]} Kg8 {[%emt 0:00:05]} 32. Bd4 {[%emt 0:00:21]} Rxf4 {[%emt 0:01:41]} 33. Qh6 {[%emt 0:01:15]} Rf5 {[%emt 0:00:36]} 34. Rxe6 {[%emt 0:00:12]} 1-0

[Event "Czech Youth U16 Boys 2024"]
[Site "Kouty nad Desnou"]
[Date "2024.03.16"]
[Round "9.3"]
[White "Juhanak, Daniel"]
[Black "Jasso, Matej"]
[Result "1-0"]
[ECO "B90"]
[WhiteElo "2005"]
[BlackElo "2060"]
[Annotator "RC"]
[PlyCount "81"]
[EventDate "2024.03.10"]
[EventType "swiss"]
[EventCountry "CZE"]
[SourceTitle "playchess.com"]
[Source "ChessBase"]
[SourceQuality "1"]
[TimeControl "40/5400+30:1800+30"]

1. e4 {[%emt 0:00:02]} c5 {[%emt 0:00:35]} 2. Nf3 {[%emt 0:00:18]} d6 {[%emt 0:00:43]} 3. d4 {[%emt 0:02:02]} cxd4 {[%emt 0:01:02]} 4. Nxd4 {[%emt 0:00:22]} Nf6 {[%emt 0:00:11]} 5. Nc3 {[%emt 0:00:12]} a6 {[%emt 0:00:07]} 6. a3 {[%emt 0:00:56]} e5 {[%emt 0:00:07]} 7. Nf5 {[%emt 0:00:23]} d5 {[%emt 0:00:05]} 8. Bg5 {[%emt 0:00:30]} d4 {[%emt 0:01:04]} 9. Bxf6 {[%emt 0:00:21]} gxf6 {[%emt 0:02:01]} 10. Nb1 {[%emt 0:00:52]} Bxf5 {[%emt 0:05:55]} 11. exf5 {[%emt 0:00:01]} Qa5+ {[%emt 0:01:25]} 12. Nd2 {[%emt 0:04:40]} Bh6 {[%emt 0:01:43]} 13. Bd3 {[%emt 0:08:13]} Nc6 {[%emt 0:03:35]} 14. b4 {[%emt 0:07:09]} Bxd2+ {[%emt 0:03:43]} 15. Qxd2 {[%emt 0:01:10]} Qd5 {[%emt 0:00:07]} 16. f3 {[%emt 0:00:58]} Na7 {[%emt 0:05:36]} 17. Be4 {[%emt 0:07:59]} Qd7 {[%emt 0:01:57]} 18. c4 {[%emt 0:14:31]} Nc6 {[%emt 0:25:22]} 19. Qd3 {[%emt 0:06:01]} Ke7 {[%emt 0:03:36]} 20. O-O {[%emt 0:03:16]} Rab8 {[%emt 0:06:18]} 21. c5 {[%emt 0:05:59]} b5 {[%emt 0:02:47]} 22. Rae1 {[%emt 0:11:17]} Kd8 {[%emt 0:11:49]} 23. Qd2 {[%emt 0:06:06]} d3 {[%emt 0:05:43]} 24. Bxc6 {[%emt 0:01:26]} Qxc6 {[%emt 0:00:02]} 25. Qxd3+ {[%emt 0:00:17]} Kc7 {[%emt 0:00:04]} 26. Rd1 {[%emt 0:04:33]} Rbd8 {[%emt 0:02:26]} 27. Qe4 {[%emt 0:00:44]} Qxe4 {[%emt 0:02:21]} 28. fxe4 {[%emt 0:00:02]} Kc6 {[%emt 0:00:11]} 29. Kf2 {[%emt 0:02:30]} Rhg8 {[%emt 0:01:06]} 30. g3 {[%emt 0:01:27]} h6 {[%emt 0:02:34]} 31. Ke2 {[%emt 0:00:53]} Rh8 {[%emt 0:01:05]} 32. Rxd8 {[%emt 0:00:35]} Rxd8 {[%emt 0:00:26]} 33. Rd1 {[%emt 0:00:19]} Rh8 {[%emt 0:02:04]} 34. Rd6+ {[%emt 0:00:43]} Kb7 {[%emt 0:00:10]} 35. Rxf6 {[%emt 0:00:50]} Rh7 {[%emt 0:00:07]} 36. Kf3 {[%emt 0:02:44]} h5 {[%emt 0:00:14]} 37. Rd6 {[%emt 0:01:33]} h4 {[%emt 0:00:46]} 38. g4 {[%emt 0:00:17]} Rh8 {[%emt 0:01:44]} 39. g5 {[%emt 0:01:16]} Rg8 {[%emt 0:01:20]} 40. Kg4 {[%emt 0:00:26]} h3 {[%emt 0:00:09]} 41. Rd7+ {[%emt 0:32:15]} 1-0

[Event "Czech Youth U16 Boys 2024"]
[Site "Kouty nad Desnou"]
[Date "2024.03.16"]
[Round "9.4"]
[White "Rybackova, Lucie"]
[Black "Juracak, David"]
[Result "0-1"]
[ECO "A00"]
[WhiteElo "1983"]
[BlackElo "1944"]
[Annotator "ChessBase"]
[PlyCount "68"]
[EventDate "2024.03.10"]
[EventType "swiss"]
[EventCountry "CZE"]
[SourceTitle "playchess.com"]
[Source "ChessBase"]
[SourceQuality "1"]
[TimeControl "40/5400+30:1800+30"]

1. g3 {[%emt 0:00:10]} e6 {[%emt 0:04:25]} 2. Bg2 {[%emt 0:00:37]} g6 {[%emt 0:06:34]} 3. c4 {[%emt 0:04:58]} Bg7 {[%emt 0:01:00]} 4. d4 {[%emt 0:02:14]} Ne7 {[%emt 0:04:03]} 5. Nc3 {[%emt 0:05:25]} d6 {[%emt 0:04:47]} 6. e4 {[%emt 0:04:38]} Nd7 {[%emt 0:01:16]} 7. Nge2 {[%emt 0:03:22]} O-O {[%emt 0:01:44]} 8. O-O {[%emt 0:00:56]} e5 {[%emt 0:11:13]} 9. Be3 {[%emt 0:09:58]} b6 {[%emt 0:01:16]} 10. f4 {[%emt 0:09:17]} Bb7 {[%emt 0:09:48]} 11. dxe5 {[%emt 0:09:06]} dxe5 {[%emt 0:00:12]} 12. Qc2 {[%emt 0:01:13]} c6 {[%emt 0:08:15]} 13. Rad1 {[%emt 0:05:29]} Qc7 {[%emt 0:00:09]} 14. f5 {[%emt 0:08:31]} Rad8 {[%emt 0:03:59]} 15. Rxd7 {[%emt 0:03:42]} Rxd7 {[%emt 0:00:05]} 16. f6 {[%emt 0:00:06]} Bh8 {[%emt 0:02:28]} 17. fxe7 {[%emt 0:00:27]} Rxe7 {[%emt 0:00:08]} 18. Rd1 {[%emt 0:09:56]} Rd8 {[%emt 0:02:09]} 19. Rf1 {[%emt 0:02:44]} Rf8 {[%emt 0:03:10]} 20. Kh1 {[%emt 0:01:38]} Bg7 {[%emt 0:00:34]} 21. Ng1 {[%emt 0:00:31]} Bc8 {[%emt 0:01:00]} 22. Bh3 {[%emt 0:00:51]} h6 {[%emt 0:01:28]} 23. Bxc8 {[%emt 0:01:10]} Qxc8 {[%emt 0:00:09]} 24. Kg2 {[%emt 0:00:31]} f5 {[%emt 0:00:56]} 25. Qd2 {[%emt 0:04:55]} f4 {[%emt 0:03:28]} 26. gxf4 {[%emt 0:03:44]} Qg4+ {[%emt 0:01:35]} 27. Kh1 {[%emt 0:00:30]} exf4 {[%emt 0:00:05]} 28. Rxf4 {[%emt 0:00:34]} Rxf4 {[%emt 0:00:15]} 29. Bxf4 {[%emt 0:00:28]} Bxc3 {[%emt 0:00:42]} 30. Qd8+ {[%emt 0:00:10]} Kf7 {[%emt 0:00:30]} 31. Qd6 {[%emt 0:03:06]} Be5 {[%emt 0:00:32]} 32. Bxe5 {[%emt 0:01:28]} Qxe4+ {[%emt 0:00:06]} 33. Nf3 {[%emt 0:00:12]} Qxf3+ {[%emt 0:00:05]} 34. Kg1 {[%emt 0:00:07]} Qe3+ {[%emt 0:00:04]} 0-1

[Event "Czech Youth U16 Boys 2024"]
[Site "Kouty nad Desnou"]
[Date "2024.03.16"]
[Round "9.5"]
[White "Andrle, Filip"]
[Black "Setina, Vaclav"]
[Result "1/2-1/2"]
[ECO "B11"]
[WhiteElo "1943"]
[BlackElo "2024"]
[Annotator "RC"]
[PlyCount "96"]
[EventDate "2024.03.10"]
[EventType "swiss"]
[EventCountry "CZE"]
[SourceTitle "playchess.com"]
[Source "ChessBase"]
[SourceQuality "1"]
[TimeControl "40/5400+30:1800+30"]

1. e4 {[%emt 0:00:07]} c6 {[%emt 0:00:03]} 2. Nc3 {[%emt 0:00:34]} d5 {[%emt 0:00:04]} 3. Nf3 {[%emt 0:00:06]} Bg4 {[%emt 0:00:08]} 4. h3 {[%emt 0:00:07]} Bh5 {[%emt 0:00:04]} 5. d4 {[%emt 0:02:00]} e6 {[%emt 0:02:21]} 6. Be2 {[%emt 0:03:34]} Bb4 {[%emt 0:08:01]} 7. e5 {[%emt 0:20:07]} Nd7 {[%emt 0:04:31]} 8. O-O {[%emt 0:01:33]} Ne7 {[%emt 0:02:13]} 9. a3 {[%emt 0:11:27]} Bxc3 {[%emt 0:05:18]} 10. bxc3 {[%emt 0:01:05]} b5 {[%emt 0:00:36]} 11. a4 {[%emt 0:02:17]} Bxf3 {[%emt 0:04:23]} 12. Bxf3 {[%emt 0:01:03]} Nb6 {[%emt 0:00:37]} 13. axb5 {[%emt 0:01:22]} cxb5 {[%emt 0:02:25]} 14. Be2 {[%emt 0:03:36]} Qd7 {[%emt 0:01:07]} 15. f4 {[%emt 0:09:19]} g6 {[%emt 0:05:04]} 16. g4 {[%emt 0:05:37]} Nc4 {[%emt 0:13:20]} 17. Bd3 {[%emt 0:04:18]} h5 {[%emt 0:11:12]} 18. Qf3 {[%emt 0:04:24]} hxg4 {[%emt 0:01:00]} 19. hxg4 {[%emt 0:00:12]} Rc8 {[%emt 0:14:37]} 20. Rf2 {[%emt 0:04:48]} Rc6 {[%emt 0:02:27]} 21. Rh2 {[%emt 0:04:40]} Rxh2 {[%emt 0:00:29]} 22. Kxh2 {[%emt 0:00:06]} a6 {[%emt 0:02:05]} 23. Qh3 {[%emt 0:01:11]} Kd8 {[%emt 0:01:29]} 24. Ba3 {[%emt 0:06:55]} Nxa3 {[%emt 0:00:41]} 25. Rxa3 {[%emt 0:00:08]} Rb6 {[%emt 0:04:34]} 26. Qh7 {[%emt 0:03:09]} Qe8 {[%emt 0:00:45]} 27. Kg3 {[%emt 0:01:32]} Kc7 {[%emt 0:04:32]} 28. Kf2 {[%emt 0:02:49]} Kb7 {[%emt 0:01:23]} 29. Ke3 {[%emt 0:01:49]} Ka7 {[%emt 0:00:43]} 30. Kd2 {[%emt 0:00:55]} Qg8 {[%emt 0:01:03]} 31. Qh1 {[%emt 0:01:03]} Qc8 {[%emt 0:01:24]} 32. Qh7 {[%emt 0:00:49]} Qg8 {[%emt 0:00:32]} 33. Qh1 {[%emt 0:00:26]} Qf8 {[%emt 0:02:35]} 34. Qh7 {[%emt 0:03:42]} Rb7 {[%emt 0:01:24]} 35. Ra1 {[%emt 0:00:28]} Qg8 {[%emt 0:00:39]} 36. Qh1 {[%emt 0:00:25]} Rb8 {[%emt 0:01:43]} 37. Qh3 {[%emt 0:00:33]} g5 {[%emt 0:00:41]} 38. f5 {[%emt 0:00:30]} exf5 {[%emt 0:00:06]} 39. gxf5 {[%emt 0:00:32]} Qh8 {[%emt 0:01:07]} 40. Qg2 {[%emt 0:00:29]} Qh4 {[%emt 0:01:12]} 41. f6 {[%emt 0:21:32]} Qf4+ {[%emt 0:02:07]} 42. Ke2 {[%emt 0:01:13]} Nf5 {[%emt 0:01:00]} 43. Bxf5 {[%emt 0:02:17]} Qxf5 {[%emt 0:00:31]} 44. Kd2 {[%emt 0:03:24]} Qf4+ {[%emt 0:05:52]} 45. Kd3 {[%emt 0:01:28]} Qf5+ {[%emt 0:01:04]} 46. Kd2 {[%emt 0:00:11]} Qf4+ {[%emt 0:15:17]} 47. Kd3 {[%emt 0:00:20]} Qf5+ {[%emt 0:00:44]} 48. Kd2 {[%emt 0:00:19]} Qf4+ {[%emt 0:01:22]} 1/2-1/2

[Event "Czech Youth U16 Boys 2024"]
[Site "Kouty nad Desnou"]
[Date "2024.03.16"]
[Round "9.6"]
[White "Davidek, Zdenek"]
[Black "Buchta, Bartolomej"]
[Result "1/2-1/2"]
[ECO "E19"]
[WhiteElo "2135"]
[BlackElo "1913"]
[Annotator "RC"]
[PlyCount "114"]
[EventDate "2024.03.10"]
[EventType "swiss"]
[EventCountry "CZE"]
[SourceTitle "playchess.com"]
[Source "ChessBase"]
[SourceQuality "1"]
[TimeControl "40/5400+30:1800+30"]

1. Nf3 {[%emt 0:00:04]} Nf6 {[%emt 0:01:48]} 2. c4 {[%emt 0:00:06]} e6 {[%emt 0:00:26]} 3. g3 {[%emt 0:00:18]} b6 {[%emt 0:00:15]} 4. Bg2 {[%emt 0:00:09]} Bb7 {[%emt 0:00:05]} 5. O-O {[%emt 0:00:16]} Be7 {[%emt 0:00:41]} 6. d4 {[%emt 0:02:03]} O-O {[%emt 0:00:19]} 7. Nc3 {[%emt 0:00:05]} Ne4 {[%emt 0:00:07]} 8. Qc2 {[%emt 0:00:06]} Nxc3 {[%emt 0:00:06]} 9. Qxc3 {[%emt 0:00:05]} d6 {[%emt 0:00:37]} 10. Qd3 {[%emt 0:01:57]} f5 {[%emt 0:04:17]} 11. Qe3 {[%emt 0:08:51]} Qc8 {[%emt 0:04:09]} 12. b3 {[%emt 0:12:04]} Re8 {[%emt 0:02:27]} 13. Bb2 {[%emt 0:00:19]} Bf6 {[%emt 0:00:12]} 14. Bh3 {[%emt 0:09:44]} Nd7 {[%emt 0:04:48]} 15. Nd2 {[%emt 0:05:52]} g6 {[%emt 0:11:17]} 16. f3 {[%emt 0:07:17]} e5 {[%emt 0:03:23]} 17. d5 {[%emt 0:00:35]} c6 {[%emt 0:00:53]} 18. dxc6 {[%emt 0:06:58]} Bxc6 {[%emt 0:08:00]} 19. Nb1 {[%emt 0:10:34]} e4 {[%emt 0:07:31]} 20. Bxf6 {[%emt 0:00:09]} Nxf6 {[%emt 0:00:54]} 21. Qd4 {[%emt 0:04:43]} Qe6 {[%emt 0:00:12]} 22. Nc3 {[%emt 0:02:10]} exf3 {[%emt 0:11:01]} 23. exf3 {[%emt 0:00:37]} Qe3+ {[%emt 0:00:09]} 24. Qxe3 {[%emt 0:00:05]} Rxe3 {[%emt 0:00:04]} 25. Nd5 {[%emt 0:06:18]} Nxd5 {[%emt 0:06:20]} 26. cxd5 {[%emt 0:00:05]} Bxd5 {[%emt 0:00:03]} 27. Rad1 {[%emt 0:00:18]} Bb7 {[%emt 0:02:58]} 28. Rxd6 {[%emt 0:00:07]} Rae8 {[%emt 0:09:47]} 29. Rd7 {[%emt 0:05:15]} Bxf3 {[%emt 0:11:55]} 30. Rxa7 {[%emt 0:01:38]} Bc6 {[%emt 0:00:06]} 31. Rc1 {[%emt 0:02:26]} Re1+ {[%emt 0:02:23]} 32. Rxe1 {[%emt 0:00:11]} Rxe1+ {[%emt 0:00:03]} 33. Kf2 {[%emt 0:00:31]} Rh1 {[%emt 0:02:08]} 34. Bf1 {[%emt 0:01:19]} Rxh2+ {[%emt 0:00:05]} 35. Ke3 {[%emt 0:00:05]} b5 {[%emt 0:02:26]} 36. a4 {[%emt 0:10:34]} Rb2 {[%emt 0:04:21]} 37. axb5 {[%emt 0:01:58]} Rxb3+ {[%emt 0:01:51]} 38. Kd4 {[%emt 0:01:10]} Bxb5 {[%emt 0:00:37]} 39. Rb7 {[%emt 0:00:26]} Bxf1 {[%emt 0:00:29]} 40. Rxb3 {[%emt 0:00:10]} Bh3 {[%emt 0:00:45]} 41. Rb7 {[%emt 0:32:09]} g5 {[%emt 0:08:05]} 42. Ke5 {[%emt 0:00:00]} f4 {[%emt 0:01:36]} 43. gxf4 {[%emt 0:00:00]} gxf4 {[%emt 0:00:24]} 44. Rb3 {[%emt 0:00:00]} Bg4 {[%emt 0:00:51]} 45. Kxf4 {[%emt 0:00:00]} h5 {[%emt 0:00:07]} 46. Rb7 {[%emt 0:00:00]} Kf8 {[%emt 0:00:58]} 47. Ke5 {[%emt 0:00:00]} Ke8 {[%emt 0:00:09]} 48. Rh7 {[%emt 0:00:00]} Kf8 {[%emt 0:00:43]} 49. Kf6 {[%emt 0:00:00]} Ke8 {[%emt 0:00:05]} 50. Ra7 {[%emt 0:00:00]} Kd8 {[%emt 0:00:07]} 51. Ke5 {[%emt 0:00:00]} Ke8 {[%emt 0:00:14]} 52. Rh7 {[%emt 0:00:00]} Kf8 {[%emt 0:00:18]} 53. Kf6 {[%emt 0:00:00]} Ke8 {[%emt 0:00:06]} 54. Re7+ {[%emt 0:00:00]} Kd8 {[%emt 0:00:08]} 55. Re4 {[%emt 0:00:00]} Kd7 {[%emt 0:00:34]} 56. Kf7 {[%emt 0:00:00]} Kd6 {[%emt 0:00:15]} 57. Kf6 {[%emt 0:00:00]} Kd7 {[%emt 0:00:09]} 1/2-1/2

[Event "Czech Youth U16 Boys 2024"]
[Site "Kouty nad Desnou"]
[Date "2024.03.16"]
[Round "9.7"]
[White "Zemek, Antonin"]
[Black "Zrubek, Dan"]
[Result "1-0"]
[ECO "B22"]
[WhiteElo "1870"]
[BlackElo "1882"]
[Annotator "NA RC"]
[PlyCount "75"]
[EventDate "2024.03.10"]
[EventType "swiss"]
[EventCountry "CZE"]
[SourceTitle "playchess.com"]
[Source "ChessBase"]
[SourceQuality "1"]
[TimeControl "40/5400+30:1800+30"]

1. e4 {[%emt 0:00:44]} c5 {[%emt 0:00:10]} 2. c3 {[%emt 0:00:07]} d5 {[%emt 0:01:54]} 3. exd5 {[%emt 0:01:37]} Qxd5 {[%emt 0:00:06]} 4. d4 {[%emt 0:00:49]} cxd4 {[%emt 0:06:08]} 5. cxd4 {[%emt 0:02:54]} e5 {[%emt 0:03:44]} 6. Nf3 {[%emt 0:08:14]} Nc6 {[%emt 0:03:45]} 7. Nc3 {[%emt 0:05:45]} Bb4 {[%emt 0:01:08]} 8. Be3 {[%emt 0:01:03]} Bg4 {[%emt 0:17:27]} 9. Be2 {[%emt 0:05:54]} exd4 {[%emt 0:18:38]} 10. O-O {[%emt 0:02:39]} Bxc3 {[%emt 0:03:05]} 11. bxc3 {[%emt 0:00:38]} d3 {[%emt 0:02:17]} 12. Qxd3 {[%emt 0:17:27]} Nf6 {[%emt 0:03:42]} 13. Bd4 {[%emt 0:04:33]} Nxd4 {[%emt 0:02:32]} 14. Nxd4 {[%emt 0:00:17]} O-O {[%emt 0:01:36]} 15. Rab1 {[%emt 0:06:15]} Bxe2 {[%emt 0:02:07]} 16. Qxe2 {[%emt 0:00:07]} Rfe8 {[%emt 0:02:35]} 17. Qd3 {[%emt 0:04:32]} Rac8 {[%emt 0:02:16]} 18. Rfd1 {[%emt 0:04:48]} Ne4 {[%emt 0:04:10]} 19. Re1 {[%emt 0:05:07]} g6 {[%emt 0:07:28]} 20. Qb5 {[%emt 0:04:40]} Qxa2 {[%emt 0:12:17]} 21. Rb2 {[%emt 0:03:05]} Qa3 {[%emt 0:01:06]} 22. Rbe2 {[%emt 0:03:16]} Qxc3 {[%emt 0:02:17]} 23. Nf3 {[%emt 0:00:47]} Kf8 {[%emt 0:00:57]} 24. Rxe4 {[%emt 0:01:23]} Rxe4 {[%emt 0:00:17]} 25. Rxe4 {[%emt 0:00:06]} Qa1+ {[%emt 0:00:20]} 26. Ne1 {[%emt 0:01:03]} Rc1 {[%emt 0:00:11]} 27. Kf1 {[%emt 0:00:11]} Rb1 {[%emt 0:00:12]} 28. Qc5+ {[%emt 0:01:35]} Kg7 {[%emt 0:00:18]} 29. Re8 {[%emt 0:00:33]} Qa6+ {[%emt 0:00:43]} 30. Kg1 {[%emt 0:00:08]} Qa1 {[%emt 0:00:16]} 31. Qf8+ {[%emt 0:01:16]} Kf6 {[%emt 0:00:03]} 32. Qe7+ {[%emt 0:00:27]} Kg7 {[%emt 0:00:14]} 33. g4 {[%emt 0:03:50]} Qa5 {[%emt 0:02:29]} 34. g5 {[%emt 0:01:08]} Rxe1+ {[%emt 0:00:08]} 35. Qxe1 {[%emt 0:00:07]} Qxg5+ {[%emt 0:00:05]} 36. Kf1 {[%emt 0:00:12]} Qb5+ {[%emt 0:00:26]} 37. Qe2 {[%emt 0:00:29]} Kf6 {[%emt 0:00:09]} 38. Qxb5 {[%emt 0:00:28]} 1-0